Cogmind - Beta 14 --- EXPLORER MODE // 2024.11.12 @ 19:42:04 Player: Asura Daeva Result: Self-destructed Performance ------------- Evolutions (1) 500 Regions Visited (5) 1000 Robots Destroyed (68) 340 Value Destroyed (862) 862 Prototype IDs (4) 80 Alien Tech Used (0) 0 Bonus (0) 0 TOTAL SCORE: 2782 Bonus ------- None Cogmind --------- Core Integrity 177/400 Matter 280/300 Energy 265/265 System Corruption 0% Temperature Cool (0) Movement Treading (225) Ox1 Location -8/Mines Parts ------- > --- POWER (1) -------- Reinforced Ion Engine > --- PROPULSION (2) --- Advanced Treads > --- UTILITY (4) ------ Disposable Heat Sink Sensor Array Improved Signal Interpreter Targeting Computer > --- WEAPON (3) ------- Particle Cannon Particle Cannon Heavy Hammer > --- INVENTORY (5) ---- Small Storage Unit Experimental Sensor Array Particle Cannon Particle Cannon Particle Cannon Peak State ------------ > --- POWER ------------ Reinforced Ion Engine > --- PROPULSION ------- Titanium Leg Titanium Leg > --- UTILITY ---------- Heat Sink Sensor Array Improved Signal Interpreter Targeting Computer > --- WEAPON ----------- Particle Cannon Particle Cannon Heavy Hammer > --- INVENTORY -------- Titanium Leg Disposable Heat Sink Improved Signal Interpreter Beam Cannon Datajack [Rating: 21] Favorites ----------- Power Reinforced Ion Engine Engine Reinforced Ion Engine Power Core Light Nuclear Core Propulsion Titanium Leg Treads Light Treads Leg Titanium Leg Wheel Wheel Utility Sensor Array Device Sensor Array Storage Medium Storage Unit Processor Targeting Computer Protection Light Armor Plating Weapon Particle Cannon Energy Gun EM Pulse Gun Energy Cannon Particle Cannon Ballistic Gun Light Assault Rifle Impact Weapon Heavy Hammer Special Melee Weapon Datajack Build | -11 -10 -9 -9 -9 -8 ------- Run | Yrd Mat Mat Min Exi Min Slots Evolved 3 | . 1 2 . . . Power . | . . . . . . Propulsion . | . . . . . . Utility 2 | . . 2 . . . Weapon 1 | . 1 . . . . Parts Attached 64 | 12 22 22 . 6 2 Power 7 | 1 3 3 . . . Engine 6 | 1 2 3 . . . Core 1 | . 1 . . . . Reactor . | . . . . . . Propulsion 16 | 6 7 2 . . 1 Treads 7 | 2 4 . . . 1 Leg 7 | 2 3 2 . . . Wheel 2 | 2 . . . . . Hover . | . . . . . . Flight . | . . . . . . Utility 16 | 3 3 7 . 3 . Device 7 | . 2 3 . 2 . Storage 4 | 1 . 2 . 1 . Processor 3 | 1 . 2 . . . Hackware . | . . . . . . Protection 2 | 1 1 . . . . Artifact . | . . . . . . Weapon 25 | 2 9 10 . 3 1 Energy Gun 5 | 1 4 . . . . Energy Cannon 10 | . 2 6 . 2 . Ballistic Gun 2 | 1 1 . . . . Ballistic Cannon . | . . . . . . Launcher . | . . . . . . Special Weapon . | . . . . . . Impact Weapon 7 | . 1 4 . 1 1 Slashing Weapon . | . . . . . . Piercing Weapon . | . . . . . . Special Melee Weapon 1 | . 1 . . . . Unidentified Prototypes . | . . . . . . Parts Lost 4 | . 1 . . 3 . Power 1 | . 1 . . . . Propulsion 2 | . . . . 2 . Utility 1 | . . . . 1 . Weapon . | . . . . . . Highest Loss Streak 2 | . 1 . . 2 . To Critical Strikes 3 | . . . . 3 . Average Slot Usage (%) 98 | . 99 99 100 95 89 Engine 8 | . 4 9 10 10 10 Core 1 | . 7 . . . . Treads 4 | . 9 8 . . 9 Leg 14 | . 14 11 20 15 . Device 16 | . 8 18 20 15 20 Storage 5 | . 12 5 . 4 . Processor 16 | . 3 15 20 20 20 Energy Gun 2 | . 14 . . . . Energy Cannon 18 | . 2 20 20 22 20 Ballistic Gun 1 | . 11 . . . . Impact Weapon 7 | . . 9 10 7 9 Special Melee Weapon 1 | . 7 . . . . Peak Build Rating 21 | 8 11 21 21 21 19 Average Rating 16 | 6 9 15 21 19 18 On Entrance 12 | . 8 11 21 21 16 Naked Turns . | . . . . . . Heaviest Build 31 | 19 24 31 23 27 24 Greatest Support 40 | 40 40 40 34 34 22 Greatest Overweight (x) 7 | 1 1 1 . 7 7 Average Overweight (x) . | . . . . . 1 Largest Inventory Capacity 10 | 10 10 10 5 8 5 Average Capacity 6 | 9 10 6 5 6 5 Most Carried 10 | 8 10 10 5 6 5 Average Carried 6 | 4 8 6 5 5 5 Final Capacity 10 | 10 10 5 5 5 5 Final Carried 10 | 8 10 5 5 5 5 Class Distribution -------------------- 85% | Hacker-Mutant 7% | Hacker-Skirmisher 6% | Hacker-Gunner Dominant Class ---------------- Hacker-Mutant | -10/Materials Hacker-Mutant | -9/Materials Hacker-Mutant | -9/Mines Hacker-Mutant | -9/Exiles Hacker-Mutant | -8/Mines Resources | -11 -10 -9 -9 -9 -8 ----------- Run | Yrd Mat Mat Min Exi Min Matter Collected 1051 | 417 319 270 . 45 . Remotely . | . . . . . . Salvage Created 2259 | 268 311 1436 98 146 . Parts 118 | 26 16 76 . . . Haulers Intercepted 7 | . 2 5 . . . Recyclers Shooed 3 | 1 . 2 . . . Parts Field Recycled . | . . . . . . Retrieved Matter . | . . . . . . Parts Self-Destructed . | . . . . . . Prevented . | . . . . . . Kills | -11 -10 -9 -9 -9 -8 ------- Run | Yrd Mat Mat Min Exi Min Combat Hostiles Destroyed 23 | . 4 12 . 7 . Melee 2 | . . 1 . 1 . Guns 4 | . 4 . . . . Cannons 15 | . . 9 . 6 . Classes Destroyed 12 | 3 3 5 . 1 . Worker 9 | 2 . 7 . . . Builder 14 | . . 11 3 . . Tunneler 8 | 7 . 1 . . . Hauler 7 | . 2 5 . . . Recycler 6 | 1 . 4 1 . . Operator 2 | . . 2 . . . Watcher 5 | . 1 4 . . . Swarmer 3 | . . 3 . . . Grunt 8 | . 4 4 . . . Brawler 1 | . . 1 . . . Sentry 4 | . . 4 . . . Assembled 6 | . . . . 6 . Best Kill Streak 8 | 5 2 8 2 6 . Combat Bots Only 6 | . 2 3 . 6 . Max Kills in Single Turn 2 | 1 1 1 1 2 . Gunslinging . | . . . . . . Exploded . | . . . . . . Melee 1 | . . 1 . 1 . Uniques/NPCs Destroyed 1 | . . . . 1 . 8R-AWN (-9/Exiles) Combat | -11 -10 -9 -9 -9 -8 -------- Run | Yrd Mat Mat Min Exi Min Hostile Shots Fired 157 | . 20 53 . 84 . Missed 47 | . 8 21 . 18 . Damage Taken 1395 | 16 290 270 . 819 . Core 309 | . 86 27 . 196 . Absorbed by Shields . | . . . . . . Ignored by Resistances 834 | 9 169 170 . 486 . Regen/Repaired (Parts) 22 | . . 22 . . . Core Remaining (%) 82 | 100 65 . . . . Volleys Fired 130 | 24 29 52 1 24 . Largest 3 | 2 3 3 2 3 . Hottest 204 | 60 90 180 136 204 . Shots Fired 289 | 48 70 110 2 59 . Gun 118 | 48 70 . . . . Cannon 171 | . . 110 2 59 . Launcher . | . . . . . . Special . | . . . . . . Kinetic 78 | 24 54 . . . . Thermal 175 | . 4 110 2 59 . Explosive . | . . . . . . Electromagnetic 36 | 24 12 . . . . Robot Hit Streak 41 | 30 41 23 . 17 . Robot Miss Streak 2 | 1 1 2 . 1 . Penetration Max . | . . . . . . Secondary Targets 1 | . 1 . . . . Max Gunslinging Chain 1 | . 1 . . . . Shots Hit Robots 286 | 38 61 108 4 75 . Core Hits 87 | 15 20 31 . 21 . Critical Kills 3 | . . 3 . . . Critical Parts Destroyed 11 | . . 9 1 1 . Critical Strikes 15 | . 1 12 1 1 . Meltdown 1 | . . 1 . . . Corrupt 1 | . 1 . . . . Smash 13 | . . 11 1 1 . Melee Attacks 123 | . 6 81 7 29 . Impact 119 | . 2 81 7 29 . Slashing . | . . . . . . Piercing . | . . . . . . Sneak Attacks 24 | . 3 17 4 . . Combat Hostiles . | . . . . . . Follow-up Attacks . | . . . . . . Damage Inflicted 6254 | 458 530 3296 331 1639 . Guns 941 | 411 530 . . . . Cannons 2192 | . . 1438 . 754 . Explosions 47 | 47 . . . . . Melee 3074 | . . 1858 331 885 . Ramming . | . . . . . . Kinetic 439 | 106 333 . . . . Thermal 2274 | 47 35 1438 . 754 . Explosive . | . . . . . . Electromagnetic 467 | 305 162 . . . . Impact 3074 | . . 1858 331 885 . Slashing . | . . . . . . Piercing . | . . . . . . Highest Corruption . | . . . . . . Average Corruption . | . . . . . . Corruption Purged . | . . . . . . Corruption Blocked . | . . . . . . Overload Shots . | . . . . . . Overflow Damage 1221 | . . 937 221 63 . Projectiles 34 | . . 27 . 7 . Explosions . | . . . . . . Melee 1187 | . . 910 221 56 . Knockbacks 21 | . . 3 4 14 . Impact 21 | . . 3 4 14 . Kinetic . | . . . . . . Secondary . | . . . . . . Self-Inflicted Damage 16 | 16 . . . . . Shots 1 | 1 . . . . . Rammed . | . . . . . . Targets Rammed . | . . . . . . Kicked . | . . . . . . Crushed . | . . . . . . Highest Temperature 270 | 52 249 270 48 252 . Average Temperature 73 | 20 68 71 29 110 . Received Heat Transfer 369 | . 111 138 . 120 . Siege Activations . | . . . . . . Robots Corrupted 13 | . . 9 4 . . Combat Hostiles 1 | . . 1 . . . Parts Fried 24 | 1 1 15 7 . . Impact Corruptions 47 | . . 34 9 4 . Robots Melted 2 | . . 2 . . . Combat Hostiles 1 | . . 1 . . . Parts Melted 11 | . . 11 . . . Heat Transferred 3835 | 50 87 3034 . 664 . Parts Sabotaged . | . . . . . . Parts Stolen . | . . . . . . Parts Stripped . | . . . . . . Power Chain Reactions 1 | 1 . . . . . Alert | -11 -10 -9 -9 -9 -8 ------- Run | Yrd Mat Mat Min Exi Min Peak Influence 193 | 50 101 193 43 . . Initial 24 | . 24 4 21 . . Average 49 | 17 25 71 23 . . Maximum Alert Level . | . . . . . . Low Security (%) 100 | 100 100 100 100 . 100 Level 1 . | . . . . . . Level 2 . | . . . . . . Level 3 . | . . . . . . Level 4 . | . . . . . . Level 5 . | . . . . . . High Security . | . . . . . . Max Security . | . . . . . . Squads Dispatched 3 | . . 3 . . . Investigation 2 | . . 2 . . . Extermination . | . . . . . . Reinforcement 1 | . . 1 . . . Assault . | . . . . . . Garrison . | . . . . . . Intercept . | . . . . . . Searches Triggered . | . . . . . . Construction Impeded . | . . . . . . Haulers Reinforced . | . . . . . . Active Scanning Responses . | . . . . . . Cargo Convoy Interrupts . | . . . . . . Stealth | -11 -10 -9 -9 -9 -8 --------- Run | Yrd Mat Mat Min Exi Min Distress Signals 4 | . 1 3 . . . Communications Jammed . | . . . . . . Distress Signals . | . . . . . . Times Spotted 37 | . 10 19 . 8 . Peak Tracking Total 9 | . 5 4 . 9 . Tactical Retreats 3 | . 1 2 . . . Traps | -11 -10 -9 -9 -9 -8 ------- Run | Yrd Mat Mat Min Exi Min Traps Triggered 3 | . 2 1 . . . Indirectly . | . . . . . . Trap Hack Attempts . | . . . . . . Triggered . | . . . . . . Disarmed . | . . . . . . Reprogrammed . | . . . . . . Reused . | . . . . . . Traps Extracted . | . . . . . . Installed . | . . . . . . Triggered . | . . . . . . Machines | -11 -10 -9 -9 -9 -8 ---------- Run | Yrd Mat Mat Min Exi Min Machines Disabled 4 | . . 2 . 2 . Max in Single Turn 1 | . . 1 . 1 . Machines Repaired . | . . . . . . Machines Dismantled . | . . . . . . Machines Sabotaged . | . . . . . . Overloaded Fab Kills . | . . . . . . Hacking | -11 -10 -9 -9 -9 -8 --------- Run | Yrd Mat Mat Min Exi Min Machines Accessed 18 | . 6 10 . 2 . Terminals 13 | . 6 7 . . . Fabricators . | . . . . . . Repair Stations 1 | . . 1 . . . Recycling Units . | . . . . . . Scanalyzers 2 | . . 2 . . . Garrison Access . | . . . . . . Total Hacks 70 | . 22 38 . 10 . Successful 45 | . 11 24 . 10 . Failed 25 | . 11 14 . . . Catastrophic 4 | . 1 3 . . . Database Lockouts . | . . . . . . Manual 24 | . 10 12 . 2 . Terminals 41 | . 22 19 . . . Fabricators . | . . . . . . Repair Stations 2 | . . 2 . . . Recycling Units . | . . . . . . Scanalyzers 17 | . . 17 . . . Garrison Access . | . . . . . . Terminal Hacks 28 | . 11 7 . 10 . Record 10 | . . . . 10 . Prototype ID Bank 2 | . 2 . . . . Branch Access Points 1 | . 1 . . . . Terminal Index 1 | . . 1 . . . Unreport Threat 3 | . 3 . . . . Locate Traps 7 | . 4 3 . . . Patrol Status 1 | . . 1 . . . Reinforcement Status 1 | . 1 . . . . Hauler Manifests 2 | . . 2 . . . Fabricator Hacks . | . . . . . . Repair Station Hacks 2 | . . 2 . . . Scan Component 1 | . . 1 . . . Repair 1 | . . 1 . . . Recycling Unit Hacks . | . . . . . . Scanalyzer 15 | . . 15 . . . Insert Component 8 | . . 8 . . . Analyze 7 | . . 7 . . . Garrison Access Hacks . | . . . . . . Unauthorized Hacks . | . . . . . . Terminals . | . . . . . . Fabricators . | . . . . . . Repair Stations . | . . . . . . Recycling Units . | . . . . . . Scanalyzers . | . . . . . . Garrison Access . | . . . . . . Data Cores Recovered 1 | . . 1 . . . Used . | . . . . . . Hacking Detections 13 | . 6 7 . . . Full Trace Events 2 | . . 2 . . . Feedback Events . | . . . . . . Feedback Blocked . | . . . . . . Robot Schematics Acquired . | . . . . . . Robots Built . | . . . . . . Authchips . | . . . . . . Time . | . . . . . . Total Robot Build Rating . | . . . . . . Part Schematics Acquired 6 | . . 6 . . . Parts Built . | . . . . . . Authchips . | . . . . . . Time . | . . . . . . Total Part Build Rating . | . . . . . . Parts Repaired 1 | . . 1 . . . Time 32 | . . 32 . . . Parts Recycled . | . . . . . . Recycled Matter . | . . . . . . Retrieved Matter . | . . . . . . Retrieved Components . | . . . . . . Parts Scanalyzed 7 | . . 7 . . . Part Schematics Acquired 6 | . . 6 . . . Parts Damaged . | . . . . . . Bothacking | -11 -10 -9 -9 -9 -8 ------------ Run | Yrd Mat Mat Min Exi Min Used RIF Installer . | . . . . . . Robots Hacked 3 | . 3 . . . . Non-combat 3 | . 3 . . . . Combat . | . . . . . . Robot Hacks Applied 4 | . 4 . . . . parse_system 2 | . 2 . . . . no_distress 1 | . 1 . . . . find_recycling 1 | . 1 . . . . Relay Couplers Released . | . . . . . . Fabnet Peak Effective % . | . . . . . . Robots Rewired . | . . . . . . Allies Hacked . | . . . . . . Hacks Repelled . | . . . . . . Allies | -11 -10 -9 -9 -9 -8 -------- Run | Yrd Mat Mat Min Exi Min Total Allies 1 | . . . 1 . . Largest Group 1 | . . . 1 1 . Highest-Rated Group 31 | . . . 31 31 . Highest-Rated Ally 31 | . . . 31 31 . Total Orders . | . . . . . . Ally Attacks . | . . . . . . Total Damage . | . . . . . . Kills . | . . . . . . Allies Corrupted . | . . . . . . Allies Melted . | . . . . . . Intel | -11 -10 -9 -9 -9 -8 ------- Run | Yrd Mat Mat Min Exi Min Robot Analysis Total . | . . . . . . Derelict Logs Recovered . | . . . . . . Drone Launches . | . . . . . . Drone Recoveries . | . . . . . . Exploration | -11 -10 -9 -9 -9 -8 ------------- Run | Yrd Mat Mat Min Exi Min Turns Passed 5470 | 227 764 1946 474 1953 106 Spaces Moved 3183 | 126 477 1032 347 1157 44 Core 97 | 2 . . . 93 2 Treads 525 | 17 130 336 . . 42 Legs 2465 | 46 312 696 347 1064 . Wheels 96 | 61 35 . . . . Hover . | . . . . . . Flight . | . . . . . . Fastest Speed 50 | 50 80 130 130 130 225 Average Speed 141 | 106 128 139 130 151 232 Slowest Speed 400 | 190 190 200 130 400 400 Overloaded Moves . | . . . . . . Propulsion Burnouts . | . . . . . . Robots Hopped . | . . . . . . Cave-ins Triggered . | . . . . . . Exploration Rate (%) 53 | 6 76 59 66 93 23 Regions Visited 5 Branch Regions 3 Pre-discovered Areas . | . . . . . . Known Exits Taken 5 | 1 1 1 1 1 . Unknown Exits Taken . | . . . . . . Scrap Searched . | . . . . . . Spaces Dug 42 | . 1 39 2 . . Terrain Destroyed 49 | 2 1 39 2 5 . Melee 42 | . 1 39 2 . . Projectile 5 | . . . . 5 . AOE 2 | 2 . . . . . Terrain Rammed . | . . . . . . Walls Destroyed . | . . . . . . Machines Disabled . | . . . . . . Actions | -11 -10 -9 -9 -9 -8 --------- Run | Yrd Mat Mat Min Exi Min Total 3693 | 171 575 1289 356 1256 46 Wait 104 | . 6 67 . 31 . Move 3178 | 125 476 1031 346 1156 44 Hop . | . . . . . . Pick Up 39 | 5 15 13 1 5 . Fast Attach 27 | 12 7 6 . 1 1 Attach 8 | . 3 3 . 2 . Detach 5 | 3 1 1 . . . Swap 29 | . 12 13 . 3 1 Drop 49 | 2 20 22 1 4 . Fire 130 | 24 29 52 1 24 . Melee 123 | . 6 81 7 29 . Ram . | . . . . . . Kick . | . . . . . . Crush . | . . . . . . Escape Stasis . | . . . . . . Rewire 1 | . . . . 1 . Trap . | . . . . . . Miscellaneous . | . . . . . . Route ------- -11/Scrapyard -10/Materials (discovered 5 exits: *Mat x3 / *Min x2) -9/Materials (discovered 3 exits: *Mat / *Min x2) -9/Mines (discovered 2 exits: *Mat / *Exi) -9/Exiles (discovered 2 exits: *Min x2) -8/Mines History --------- Turn | Location | Event 28 | -11/Scrapyard | Identified exit to Materials 28 | -11/Scrapyard | Discovered exit to Materials (range 15) 228 | -11/Scrapyard | Entered Materials 228 | -10/Materials | Evolved 1 slot: Weapon x1 267 | -10/Materials | Identified exit to Mines 267 | -10/Materials | Discovered exit to Mines (range 14) 465 | -10/Materials | Identified exit to Materials 465 | -10/Materials | Discovered exit to Materials (range 11) 625 | -10/Materials | Discovered exit to Materials (range 14) 742 | -10/Materials | Build established: Hacker-Mutant 974 | -10/Materials | Discovered exit to Materials (range 12) 992 | -10/Materials | Entered another Materials area 992 | -9/Materials | Evolved 2 slots: Utility x2 1146 | -9/Materials | Identified exit to Mines 1146 | -9/Materials | Discovered exit to Mines (range 16) 1430 | -9/Materials | Repaired Rnf. Ion Engine 1443 | -9/Materials | Identified exit to Materials 1443 | -9/Materials | Discovered exit to Materials (range 10) 2051 | -9/Materials | Discovered exit to Mines (range 16) 2938 | -9/Materials | Entered Mines 3202 | -9/Mines | YI-UF0 nonchalantly dropped a Grenade Launcher on the ground 3203 | -9/Mines | Received a Rocket Launcher from a helpful Derelict 3262 | -9/Mines | Discovered exit to Materials (range 3) 3288 | -9/Mines | Found a damaged Exp. Sensor Array with a note attached 3291 | -9/Mines | Found Prototype Device 3346 | -9/Mines | Deemed a non-threat by the Exiles lab entrance 3346 | -9/Mines | Identified exit to Exiles 3346 | -9/Mines | Discovered exit to Exiles (range 5) 3367 | -9/Mines | Received a Mining Laser from a helpful Derelict 3412 | -9/Mines | Entered Exiles 3412 | -9/Exiles | Accompanied by 1 ally 3435 | -9/Exiles | Identified exit to Mines 3435 | -9/Exiles | Discovered exit to Mines (range 14) 3457 | -9/Exiles | Met 8R-AWN 3485 | -9/Exiles | Met EX-HEX 3540 | -9/Exiles | Met EX-BIN 3692 | -9/Exiles | Met EX-DEC 3784 | -9/Exiles | Visited The Gauntlet 4045 | -9/Exiles | Discovered exit to Mines (range 14) 4785 | -9/Exiles | Attacked by the Exiles 4993 | -9/Exiles | Destroyed 8R-AWN 5271 | -9/Exiles | Build established: Hacker-Skirmisher 5290 | -9/Exiles | Core integrity fell below 50% 5365 | -9/Exiles | Entered Mines 5471 | -8/Mines | Self-destructed Last Messages --------------- 04961_ Heat Sink destroyed. 04961_ Penetrated by HV Slug. 04962_ 8R-AWN knocked back. 04967_ Destroyed Prototype Device. 04968_ HV Slug penetrates Wall. 04968_ Penetrated by HV Slug. 04981_ Critical hit (Destroy). 04981_ Titanium Leg destroyed. 04986_ Penetrated by HV Slug. 04993_ 8R-AWN destroyed. 04996_ Acquired 45 matter. 05004_ Acquired Sml. Storage Unit. 05017_ Connecting with DEC's Terminal... 05289_ Rigged Nuclear Core explodes. 05289_ Machine disabled. 05305_ Rigged Nuclear Core explodes. LOCATION=MINES GOAL=ESCAPE 05373_ Acquired Adv. Treads. 05467_ K-01 Serf collects debris. Map ----- +----------------------------------------------------+ | ??????????????????????## !##?????????????????? | | ?????????????????????## ##????????????????? | | ?????????????????????# [ ####?????????????? | | ?????????????????????# #???????????## | | ?????????????????????# #???####?## | | ?????????????????????## =## ##### ## | | ??????????????????????##] ### | | ?????????????????#####?####?# | | ????????????????## ##?????######## | | ????????????????# ##????????#### ### | | ????????????????# ##??????## ####???? | | ???????????????## ###???## #????????? | | ???????????????# ##### #????????? | | ???????????????# #????????? | | ???????????????## ##????????? | | ????????????????## ###???????? | | ?????? ######???# ? | | ????? #??# ########??? | | ???? #?# ### #?????????? | | ????# ## #?## ##?????????? | | ?????# ##?###### ####??????????? | | ?????# ##?????####?????????????? | | ??????# #### #???????#??????????????? | | ????????????#### ##### ##?????????????? | | ???????????????## k #?????????????? | | ????????????????# @ #?????????????? | | ????????????????# ##### ##?????????????? | | ????????????????# ###?????? #??????????????? | | ????????????????# ???????????#??????????????? | | ??????????????? ??????????????????????????? | | ?????????????? ####??????????????????????????? | | ????????????" ???????????????????????????????? | | ???????????""????????????????????????????????? | | ??????????? ?????????????????????????????????? | | ?????????????????????????????????????????????? | | ?????????????????????????????????????????????? | | ?????????????????????????????????????????????? | | ?????????????????????????????????????????????? | | ?????????????????????????????????????????????? | | ?????????????????????????????????????????????? | | ?????????????????????????????????????????????? | | ?????????????????????????????????????????????? | | ?????????????????????????????????????????????? | | ?????????????????????????????????????????????? | | ?????????????????????????????????????????????? | | ?????????????????????????????????????????????? | | ?????????????????????????????????????????????? | | ?????????????????????????????????????????????? | | ?????????????????????????????????????????????? | | ?????????????????????????????????????????????? | +----------------------------------------------------+ Best States ------------- Heat Dissipation 38 Coolant Potential 50 Energy Generation 14 Energy Capacity 365 Matter Stores 300 Matter Capacity 300 Sight Range 16 Robot Scan Range 14 Terrain Scan Range 16 Terrain Scan Density 10 Armor Coverage 150 Resistance: KI 35 Resistance: TH 35 Resistance: EX 35 Resistance: EM 35 Resistance: I 35 Resistance: S 35 Resistance: P 35 Evasion (%) 55 Targeting Accuracy 5 Recoil Reduction 2 Offensive Hacking 20 Item Schematics ----------------- Imp. Signal Interpreter | -9/Materials | Scanalyzed Titanium Leg | -9/Materials | Scanalyzed Beam Cannon | -9/Materials | Scanalyzed Targeting Computer | -9/Materials | Scanalyzed Sensor Array | -9/Materials | Scanalyzed Datajack | -9/Materials | Scanalyzed Robot Schematics ------------------ None Fabricated ------------ Nothing Alien Tech Used ----------------- None Achievements -------------- None Challenges ------------ None Game ------ Seed CombatCoolingInitializer Manual? 0 Play Time 01:54:32 Cumulative 35.7 hours Start 2024.11.12 @ 15:35:21 End 2024.11.12 @ 19:42:04 Sessions 3 Manual Loads 0 Difficulty Explorer Special Mode None Game No. 9 Rogue 0 Adventurer 0 Explorer 9 Win Type - Total 0 Types 0/0/0/0/0/0/0/0/0 Lore% 10 Gallery% 20 Achievement% 33 Wizard Run 0 Options --------- Layout 0 ASCII 0 Keyboard 0 Movement Mouse Keybinds 0 Fullscreen 2 Font 18/X11Bold Map View 76x50 Zoom Use 0% Tactical HUD 1 Map Filters NONE Filters NONE Steam 1 RUN: c191cff3-bf1d-4dda-b918-d64ca6fd199b